fUSD/lending_fUSD_20250611
["ID","MTS","AMOUNT","RATE_DAILY","PERIOD"]
[365407324,1749658232119,-200.0,0.00018076,2]
[365407325,1749658232128,-1000.0,0.00018152,2]
[365407326,1749658232138,-305.18,0.00018488,2]
[365407327,1749658232147,-305.36,0.00018488,2]
[365407328,1749658232156,-1200.0,0.00018499,2]
[365407329,1749658232166,-3490.46713211,0.000185,2]
[365407330,1749658232177,-3445.15093072,0.000185,2]
[365407331,1749658232186,-300.06,0.000185,2]
[365407332,1749658232195,-301.5,0.000185,2]
[365407333,1749658232205,-250.0,0.00018571,2]
[365407334,1749658232214,-241.0,0.00018641,2]
[365407335,1749658232223,-377.37844347,0.000187,2]
[365407336,1749658232232,-401.42155653,0.000187,2]
[365407337,1749658232242,-500.0,0.000187,2]
[365407338,1749658232252,-624.61,0.00018701,2]
[365407339,1749658232262,-7774.24866928,0.00018701,2]
[365407340,1749658232273,-340.06254008,0.00018701,2]
[365407341,1749658232284,-603.84235597,0.00018701,2]
[365407342,1749658232295,-1281.83643467,0.00018701,2]
[365407343,1749658232304,-9279.94,0.00018701,2]
[365407344,1749658232313,-156.61,0.00018726,2]
[365407345,1749658232322,-5737.91331393,0.00018779,2]
[365407346,1749658232422,-698.98060874,0.00018779,2]
[365407349,1749658232434,-14008.2251736,0.00018779,2]
[365407372,1749658237883,-821.67642385,0.00018779,2]
[365407374,1749658238010,-2633.20447988,0.00018779,2]
[365407375,1749658238019,-151.0,0.00018991,2]
[365407376,1749658238028,-253.77639371,0.00018991,2]
[365407377,1749658238037,-151.0,0.00018991,2]
[365407378,1749658238047,-1957.856,0.00018991,2]
[365407379,1749658238056,-207.4,0.00018991,2]
[365407380,1749658238065,-305.15,0.00018999,2]
[365407381,1749658238075,-250.0,0.00019,2]
[365407382,1749658238084,-2030.296672,0.00019046,2]
[365407383,1749658238094,-178.55401763,0.00019078,2]
[365407384,1749658238103,-369.44632977,0.00019078,2]
[365407385,1749658238113,-11717.27271181,0.00019078,2]
[365407386,1749658238123,-2745.2228,0.00019078,2]
[365407387,1749658238132,-500.0,0.00019078,2]
[365407388,1749658238142,-2500.0,0.00019078,2]
[365407389,1749658238151,-5000.0,0.00019078,2]
[365407390,1749658238161,-500.0,0.00019099,2]
[365407391,1749658238170,-500.0,0.00019099,2]
[365407392,1749658238180,-500.0,0.00019099,2]
[365407393,1749658238190,-392.23627628,0.00019099,2]
[365407394,1749658238200,-500.0,0.00019099,2]
[365407395,1749658238210,-199.89016378,0.00019099,2]
[365407396,1749658238220,-54696.0,0.000191,2]
[365407397,1749658238230,-2105.41764886,0.00019101,2]
[365407398,1749658238239,-2183.31810187,0.00019156,2]
[365407399,1749658238248,-369.44632977,0.00019169,2]
[365407400,1749658238259,-11717.27271176,0.00019169,2]
[365407401,1749658238268,-539.84296213,0.00019173,2]
[365407402,1749658238277,-500.0,0.00019173,2]
[365407403,1749658238287,-500.0,0.00019173,2]
[365407404,1749658238296,-500.0,0.00019173,2]
[365407405,1749658238306,-500.0,0.00019173,2]
[365407406,1749658238317,-500.0,0.00019173,2]
[365407407,1749658238326,-500.0,0.00019173,2]
[365407408,1749658238335,-500.0,0.00019173,2]
[365407409,1749658238345,-500.0,0.00019173,2]
[365407410,1749658238354,-287.01789964,0.00019178,2]
[365407411,1749658238363,-490.0,0.00019178,2]
[365407412,1749658238373,-490.0,0.00019178,2]
[365407413,1749658238382,-740.16,0.00019178,2]
[365407414,1749658238391,-490.0,0.00019178,2]
[365407415,1749658238400,-490.0,0.00019178,2]
[365407416,1749658238408,-490.0,0.00019178,2]
[365407417,1749658238417,-481.23994499,0.00019178,2]
[365407418,1749658238426,-490.0,0.00019178,2]
[365407419,1749658238435,-490.0,0.00019178,2]
[365407420,1749658238444,-425.59734215,0.00019178,2]
[365407421,1749658238453,-490.0,0.00019178,2]
[365407422,1749658238462,-490.0,0.00019178,2]
[365407423,1749658238471,-490.0,0.00019178,2]
[365407424,1749658238480,-490.0,0.00019178,2]
[365407425,1749658238490,-437.29376853,0.00019178,2]
[365407426,1749658238501,-490.0,0.00019178,2]
[365407427,1749658238513,-480.0,0.00019178,2]
[365407428,1749658238522,-490.0,0.00019178,2]
[365407429,1749658238531,-321.58170715,0.00019178,2]
[365407430,1749658238541,-490.0,0.00019178,2]
[365407431,1749658238551,-490.0,0.00019178,2]
[365407432,1749658238560,-490.0,0.00019178,2]
[365407433,1749658238570,-490.0,0.00019178,2]
[365407434,1749658238580,-490.0,0.00019178,2]
[365407435,1749658238590,-490.0,0.00019178,2]
[365407437,1749658238599,-619.51871375,0.00019178,2]
[365407439,1749658238609,-181.07784663,0.00019178,2]
[365407441,1749658238618,-267.29317245,0.00019178,2]
[365407443,1749658238628,-490.0,0.00019178,2]
[365407445,1749658238637,-490.0,0.00019178,2]
[365407447,1749658238646,-480.0,0.00019178,2]
[365407449,1749658238656,-490.0,0.00019178,2]
[365407451,1749658238666,-490.0,0.00019178,2]
[365407453,1749658238676,-490.0,0.00019178,2]
[365407455,1749658238685,-211.02850128,0.00019178,2]
[365407457,1749658238694,-490.0,0.00019178,2]
[365407459,1749658238704,-490.0,0.00019178,2]
[365407461,1749658238714,-490.0,0.00019178,2]
[365407463,1749658238723,-490.0,0.00019178,2]
[365407465,1749658238733,-490.0,0.00019178,2]
[365407467,1749658238742,-490.0,0.00019178,2]
[365407469,1749658238752,-490.0,0.00019178,2]
[365407471,1749658238763,-251.16782766,0.00019178,2]
[365407473,1749658238773,-490.0,0.00019178,2]
[365407475,1749658238783,-588.0,0.00019178,2]
[365407477,1749658238792,-463.15126092,0.00019178,2]
[365407479,1749658238802,-184.88233478,0.00019178,2]
[365407481,1749658238812,-490.0,0.00019178,2]
[365407483,1749658238825,-241.38657833,0.00019178,2]
[365407485,1749658238834,-490.0,0.00019178,2]
[365407487,1749658238844,-490.0,0.00019178,2]
[365407489,1749658238854,-490.0,0.00019178,2]
[365407491,1749658238864,-499.37550327,0.00019178,2]
[365407493,1749658238873,-490.0,0.00019178,2]
[365407495,1749658238883,-483.75630207,0.00019178,2]
[365407497,1749658238892,-490.0,0.00019178,2]
[365407499,1749658238901,-490.0,0.00019178,2]
[365407500,1749658238911,-461.2638209,0.00019178,2]
[365407502,1749658238920,-362.35489253,0.00019178,2]
[365407504,1749658238930,-352.8877894,0.00019178,2]
[365407506,1749658238940,-490.0,0.00019178,2]
[365407509,1749658238950,-472.07201631,0.00019178,2]
[365407511,1749658238961,-490.0,0.00019178,2]
[365407512,1749658238971,-402.16779271,0.00019178,2]
[365407514,1749658238982,-393.58140268,0.00019178,2]
[365407515,1749658238992,-490.0,0.00019178,2]
[365407516,1749658239001,-490.0,0.00019178,2]
[365407517,1749658239017,-490.0,0.00019178,2]
[365407518,1749658239031,-490.0,0.00019178,2]
[365407519,1749658239047,-490.0,0.00019178,2]
[365407520,1749658239057,-490.0,0.00019178,2]
[365407521,1749658239067,-505.08634057,0.00019178,2]
[365407522,1749658239358,-490.0,0.00019178,2]
[365407523,1749658239371,-456.78863376,0.00019178,2]
[365407524,1749658239382,-490.0,0.00019178,2]
[365407525,1749658239392,-490.0,0.00019178,2]
[365407526,1749658239402,-490.0,0.00019178,2]
[365407527,1749658239412,-490.0,0.00019178,2]
[365407528,1749658239422,-490.0,0.00019178,2]
[365407529,1749658239433,-388.78259545,0.00019178,2]
[365407530,1749658239443,-490.0,0.00019178,2]
[365407531,1749658239454,-490.0,0.00019178,2]
[365407532,1749658239464,-490.0,0.00019178,2]
[365407533,1749658239475,-430.0,0.00019178,2]
[365407534,1749658239485,-510.97,0.00019178,2]
[365407535,1749658239495,-490.0,0.00019178,2]
[365407536,1749658239516,-490.0,0.00019178,2]
[365407537,1749658239527,-490.0,0.00019178,2]
[365407538,1749658239538,-480.0,0.00019178,2]
[365407539,1749658239548,-163.79929507,0.00019178,2]
[365407540,1749658239559,-490.0,0.00019178,2]
[365407541,1749658239569,-490.0,0.00019178,2]
[365407542,1749658239579,-490.0,0.00019178,2]
[365407543,1749658239589,-490.0,0.00019178,2]
[365407544,1749658239599,-490.0,0.00019178,2]
[365407545,1749658239609,-490.0,0.00019178,2]
[365407546,1749658239621,-490.0,0.00019178,2]
[365407547,1749658239631,-490.0,0.00019178,2]
[365407548,1749658239640,-464.22454082,0.00019178,2]
[365407549,1749658239650,-480.7320962,0.00019178,2]
[365407550,1749658239660,-490.0,0.00019178,2]
[365407551,1749658239671,-490.0,0.00019178,2]
[365407552,1749658239681,-490.0,0.00019178,2]
[365407553,1749658239690,-254.54216282,0.00019178,2]
[365407554,1749658239699,-490.0,0.00019178,2]
[365407555,1749658239709,-490.0,0.00019178,2]
[365407556,1749658239719,-400.09667656,0.00019178,2]
[365407557,1749658239728,-430.0,0.00019178,2]
[365407558,1749658239738,-490.0,0.00019178,2]
[365407559,1749658239748,-490.0,0.00019178,2]
[365407560,1749658239763,-490.0,0.00019178,2]
[365407561,1749658239773,-357.38407567,0.00019178,2]
[365407562,1749658239783,-490.0,0.00019178,2]
[365407563,1749658239794,-360.97057138,0.00019178,2]
[365407564,1749658239804,-490.0,0.00019178,2]
[365407565,1749658239813,-490.0,0.00019178,2]
[365407566,1749658239823,-346.19654181,0.00019178,2]
[365407567,1749658239833,-490.0,0.00019178,2]
[365407568,1749658239843,-490.0,0.00019178,2]
[365407569,1749658239853,-636.3743516,0.00019178,2]
[365407570,1749658239863,-197.98467032,0.00019178,2]
[365407571,1749658239873,-490.0,0.00019178,2]
[365407572,1749658239882,-490.0,0.00019178,2]
[365407573,1749658239892,-490.0,0.00019178,2]
[365407574,1749658239901,-432.01681633,0.00019178,2]
[365407575,1749658239911,-490.0,0.00019178,2]
[365407576,1749658239920,-339.31033546,0.00019178,2]
[365407577,1749658239930,-490.0,0.00019178,2]
[365407578,1749658239939,-490.0,0.00019178,2]
[365407579,1749658239948,-490.0,0.00019178,2]
[365407580,1749658239958,-490.0,0.00019178,2]
[365407581,1749658239967,-490.0,0.00019178,2]
[365407582,1749658239977,-490.0,0.00019178,2]
[365407583,1749658239986,-490.0,0.00019178,2]
[365407584,1749658239995,-450.0,0.00019178,2]
[365407585,1749658240007,-490.0,0.00019178,2]
[365407586,1749658240017,-433.19132958,0.00019178,2]
[365407587,1749658240026,-490.0,0.00019178,2]
[365407588,1749658240036,-397.3457674,0.00019178,2]
[365407589,1749658240045,-490.0,0.00019178,2]
[365407590,1749658240054,-490.0,0.00019178,2]
[365407591,1749658240063,-490.0,0.00019178,2]
[365407592,1749658240073,-589.3,0.00019178,2]
[365407593,1749658240082,-235.08,0.00019178,2]
[365407594,1749658240091,-490.0,0.00019178,2]
[365407595,1749658240100,-490.0,0.00019178,2]
[365407596,1749658240109,-490.0,0.00019178,2]
[365407597,1749658240119,-490.0,0.00019178,2]
[365407598,1749658240128,-322.6930183,0.00019178,2]
[365407599,1749658240137,-490.0,0.00019178,2]
[365407600,1749658240147,-490.0,0.00019178,2]
[365407601,1749658240156,-490.0,0.00019178,2]
[365407602,1749658240165,-450.0,0.00019178,2]
[365407603,1749658240175,-490.0,0.00019178,2]
[365407604,1749658240184,-490.0,0.00019178,2]
[365407605,1749658240194,-490.0,0.00019178,2]
[365407606,1749658240203,-450.0,0.00019178,2]
[365407607,1749658240213,-220.28593692,0.00019178,2]
[365407608,1749658240222,-490.0,0.00019178,2]
[365407609,1749658240231,-490.0,0.00019178,2]
[365407610,1749658240241,-490.0,0.00019178,2]
[365407611,1749658240250,-490.0,0.00019178,2]
[365407612,1749658240263,-490.0,0.00019178,2]
[365407613,1749658240273,-490.0,0.00019178,2]
[365407614,1749658240282,-490.0,0.00019178,2]
[365407615,1749658240291,-490.0,0.00019178,2]
[365407616,1749658240301,-490.0,0.00019178,2]
[365407617,1749658240310,-490.0,0.00019178,2]
[365407618,1749658240319,-490.0,0.00019178,2]
[365407619,1749658240328,-490.0,0.00019178,2]
[365407620,1749658240338,-430.0,0.00019178,2]
[365407621,1749658240347,-490.0,0.00019178,2]
[365407622,1749658240356,-490.0,0.00019178,2]
[365407623,1749658240366,-490.0,0.00019178,2]
[365407624,1749658240375,-490.0,0.00019178,2]
[365407625,1749658240385,-490.0,0.00019178,2]
[365407626,1749658240394,-424.11373663,0.00019178,2]
[365407627,1749658240404,-435.37263967,0.00019178,2]
[365407628,1749658240414,-490.0,0.00019178,2]
[365407629,1749658240423,-490.0,0.00019178,2]
[365407630,1749658240432,-490.0,0.00019178,2]
[365407631,1749658240441,-490.0,0.00019178,2]
[365407632,1749658240451,-490.0,0.00019178,2]
[365407633,1749658240461,-490.0,0.00019178,2]
[365407634,1749658240471,-490.0,0.00019178,2]
[365407635,1749658240480,-490.0,0.00019178,2]
[365407636,1749658240491,-490.0,0.00019178,2]
[365407637,1749658240507,-490.0,0.00019178,2]
[365407638,1749658240516,-525.06,0.00019178,2]
[365407639,1749658240525,-490.0,0.00019178,2]
[365407640,1749658240535,-490.0,0.00019178,2]
[365407641,1749658240544,-490.0,0.00019178,2]
[365407642,1749658240554,-490.0,0.00019178,2]
[365407643,1749658240563,-490.0,0.00019178,2]
[365407644,1749658240574,-490.0,0.00019178,2]
[365407645,1749658240584,-500.0,0.00019178,2]
[365407646,1749658240594,-500.0,0.00019178,2]
[365407647,1749658240603,-490.0,0.00019178,2]
[365407648,1749658240612,-450.0,0.00019178,2]
[365407649,1749658240622,-490.0,0.00019178,2]
[365407650,1749658240631,-490.0,0.00019178,2]
[365407651,1749658240642,-490.0,0.00019178,2]
[365407652,1749658240652,-264.68221721,0.00019178,2]
[365407653,1749658240663,-797.4,0.00019178,2]
[365407654,1749658240673,-490.0,0.00019178,2]
[365407655,1749658240683,-490.0,0.00019178,2]
[365407656,1749658240693,-490.0,0.00019178,2]
[365407657,1749658240704,-450.0,0.00019178,2]
[365407658,1749658240713,-490.0,0.00019178,2]
[365407659,1749658240723,-490.0,0.00019178,2]
[365407660,1749658240733,-490.0,0.00019178,2]
[365407661,1749658240742,-490.0,0.00019178,2]
[365407662,1749658240752,-490.0,0.00019178,2]
[365407663,1749658240764,-624.98,0.00019178,2]
[365407664,1749658240774,-490.0,0.00019178,2]
[365407665,1749658240784,-490.0,0.00019178,2]
[365407666,1749658240794,-490.0,0.00019178,2]
[365407667,1749658240803,-490.0,0.00019178,2]
[365407668,1749658240813,-490.0,0.00019178,2]
[365407669,1749658240823,-490.0,0.00019178,2]
[365407670,1749658240832,-490.0,0.00019178,2]
[365407671,1749658240842,-490.0,0.00019178,2]
[365407672,1749658240852,-490.0,0.00019178,2]
[365407673,1749658240862,-490.0,0.00019178,2]
[365407674,1749658240871,-490.0,0.00019178,2]
[365407675,1749658240881,-490.0,0.00019178,2]
[365407676,1749658240890,-490.0,0.00019178,2]
[365407677,1749658240900,-490.0,0.00019178,2]
[365407678,1749658240909,-410.0,0.00019178,2]
[365407679,1749658240919,-490.0,0.00019178,2]
[365407680,1749658240929,-490.0,0.00019178,2]
[365407681,1749658240938,-490.0,0.00019178,2]
[365407682,1749658240947,-490.0,0.00019178,2]
[365407683,1749658240957,-443.85164415,0.00019178,2]
[365407684,1749658240967,-490.0,0.00019178,2]
[365407685,1749658240976,-1463.23,0.00019178,2]
[365407686,1749658240985,-490.0,0.00019178,2]
[365407687,1749658240995,-488.09391225,0.00019178,2]
[365407688,1749658241007,-490.0,0.00019178,2]
[365407689,1749658241017,-490.0,0.00019178,2]
[365407690,1749658241026,-490.0,0.00019178,2]
[365407691,1749658241035,-490.0,0.00019178,2]
[365407692,1749658241044,-490.0,0.00019178,2]
[365407693,1749658241054,-704.02,0.00019178,2]
[365407694,1749658241064,-434.88723089,0.00019178,2]
[365407695,1749658241073,-490.0,0.00019178,2]
[365407696,1749658241083,-490.0,0.00019178,2]
[365407697,1749658241093,-490.0,0.00019178,2]
[365407698,1749658241103,-315.50260034,0.00019178,2]
[365407699,1749658241113,-490.0,0.00019178,2]
[365407700,1749658241123,-635.73,0.00019178,2]
[365407701,1749658241133,-490.0,0.00019178,2]
[365407702,1749658241143,-490.0,0.00019178,2]
[365407703,1749658241152,-498.89237035,0.00019178,2]
[365407704,1749658241162,-977.89,0.00019178,2]
[365407705,1749658241171,-490.0,0.00019178,2]
[365407706,1749658241188,-490.0,0.00019178,2]
[365407707,1749658241200,-490.0,0.00019178,2]
[365407708,1749658241210,-254.02932864,0.00019178,2]
[365407709,1749658241219,-490.0,0.00019178,2]
[365407710,1749658241229,-490.0,0.00019178,2]
[365407711,1749658241239,-490.0,0.00019178,2]
[365407712,1749658241249,-490.0,0.00019178,2]
[365407713,1749658241265,-490.0,0.00019178,2]
[365407714,1749658241275,-490.0,0.00019178,2]
[365407715,1749658241284,-490.0,0.00019178,2]
[365407716,1749658241294,-490.0,0.00019178,2]
[365407717,1749658241303,-490.0,0.00019178,2]
[365407718,1749658241312,-459.80234408,0.00019178,2]
[365407719,1749658241322,-490.0,0.00019178,2]
[365407720,1749658241331,-490.0,0.00019178,2]
[365407721,1749658241341,-490.0,0.00019178,2]
[365407722,1749658241351,-490.0,0.00019178,2]
[365407723,1749658241361,-490.0,0.00019178,2]
[365407724,1749658241370,-490.0,0.00019178,2]
[365407725,1749658241380,-490.0,0.00019178,2]
[365407726,1749658241389,-490.0,0.00019178,2]
[365407727,1749658241399,-490.0,0.00019178,2]
[365407728,1749658241408,-554.63,0.00019178,2]
[365407729,1749658241418,-490.0,0.00019178,2]
[365407730,1749658241427,-463.12959553,0.00019178,2]
[365407731,1749658241437,-250.0,0.00019178,2]
[365407732,1749658241446,-490.0,0.00019178,2]
[365407733,1749658241455,-490.0,0.00019178,2]
[365407734,1749658241465,-490.0,0.00019178,2]
[365407735,1749658241474,-490.0,0.00019178,2]
[365407736,1749658241483,-490.0,0.00019178,2]
[365407737,1749658241498,-490.0,0.00019178,2]
[365407738,1749658241514,-395.65952385,0.00019178,2]
[365407739,1749658241526,-490.0,0.00019178,2]
[365407740,1749658241541,-490.0,0.00019178,2]
[365407741,1749658241552,-490.0,0.00019178,2]
[365407742,1749658241563,-490.0,0.00019178,2]
[365407743,1749658241573,-261.46806093,0.00019178,2]
[365407744,1749658241586,-818.43,0.00019178,2]
[365407745,1749658241597,-490.0,0.00019178,2]
[365407746,1749658241608,-490.0,0.00019178,2]
[365407747,1749658241619,-490.0,0.00019178,2]
[365407748,1749658241629,-490.0,0.00019178,2]
[365407749,1749658241640,-490.0,0.00019178,2]
[365407750,1749658241650,-490.0,0.00019178,2]
[365407751,1749658241660,-418.18414687,0.00019178,2]
[365407752,1749658241670,-539.1,0.00019178,2]
[365407753,1749658241680,-490.0,0.00019178,2]
[365407754,1749658241690,-490.0,0.00019178,2]
[365407755,1749658241700,-490.0,0.00019178,2]
[365407756,1749658241710,-490.0,0.00019178,2]
[365407757,1749658241720,-490.0,0.00019178,2]
[365407758,1749658241730,-490.0,0.00019178,2]
[365407759,1749658241740,-640.86,0.00019178,2]
[365407760,1749658241750,-490.0,0.00019178,2]
[365407761,1749658241763,-490.0,0.00019178,2]
[365407762,1749658241774,-490.0,0.00019178,2]
[365407763,1749658241784,-490.0,0.00019178,2]
[365407764,1749658241795,-490.0,0.00019178,2]
[365407765,1749658241807,-490.0,0.00019178,2]
[365407766,1749658241819,-598.24234419,0.00019178,2]
[365407767,1749658241830,-490.0,0.00019178,2]
[365407768,1749658241841,-490.0,0.00019178,2]
[365407769,1749658241852,-490.0,0.00019178,2]
[365407770,1749658241863,-475.23668659,0.00019178,2]
[365407771,1749658241976,-490.0,0.00019178,2]
[365407772,1749658241987,-702.06,0.00019178,2]
[365407773,1749658241998,-465.76145024,0.00019178,2]
[365407774,1749658242016,-557.19,0.00019178,2]
[365407775,1749658242028,-490.0,0.00019178,2]
[365407776,1749658242038,-490.0,0.00019178,2]
[365407777,1749658242050,-490.0,0.00019178,2]
[365407778,1749658242062,-490.0,0.00019178,2]
[365407779,1749658242072,-490.0,0.00019178,2]
[365407780,1749658242083,-490.0,0.00019178,2]
[365407781,1749658242095,-490.0,0.00019178,2]
[365407782,1749658242111,-490.0,0.00019178,2]
[365407783,1749658242122,-480.0,0.00019178,2]
[365407784,1749658242132,-490.0,0.00019178,2]
[365407785,1749658242142,-490.0,0.00019178,2]
[365407786,1749658242151,-670.47,0.00019178,2]
[365407787,1749658242162,-490.0,0.00019178,2]
[365407788,1749658242173,-490.0,0.00019178,2]
[365407789,1749658242182,-490.0,0.00019178,2]
[365407790,1749658242193,-490.0,0.00019178,2]
[365407791,1749658242202,-490.0,0.00019178,2]
[365407792,1749658242212,-490.0,0.00019178,2]
[365407793,1749658242223,-242.3969905,0.00019178,2]
[365407794,1749658242233,-519.6,0.00019178,2]
[365407795,1749658242243,-450.0,0.00019178,2]
[365407796,1749658242253,-958.71,0.00019178,2]
[365407797,1749658242269,-490.0,0.00019178,2]
[365407798,1749658242279,-490.0,0.00019178,2]
[365407799,1749658242288,-490.0,0.00019178,2]
[365407800,1749658242297,-490.0,0.00019178,2]
[365407801,1749658242307,-490.0,0.00019178,2]
[365407802,1749658242317,-490.0,0.00019178,2]
[365407803,1749658242327,-490.0,0.00019178,2]
[365407804,1749658242336,-490.0,0.00019178,2]
[365407805,1749658242345,-490.0,0.00019178,2]
[365407806,1749658242355,-451.56906453,0.00019178,2]
[365407807,1749658242365,-490.0,0.00019178,2]
[365407808,1749658242375,-490.0,0.00019178,2]
[365407809,1749658242385,-490.0,0.00019178,2]
[365407810,1749658242395,-490.0,0.00019178,2]
[365407811,1749658242405,-490.0,0.00019178,2]
[365407812,1749658242415,-511.42401804,0.00019178,2]
[365407813,1749658242425,-490.0,0.00019178,2]
[365407814,1749658242436,-490.0,0.00019178,2]
[365407815,1749658242446,-490.0,0.00019178,2]
[365407816,1749658242455,-390.0,0.00019178,2]
[365407817,1749658242464,-490.0,0.00019178,2]
[365407818,1749658242474,-490.0,0.00019178,2]
[365407819,1749658242484,-490.0,0.00019178,2]
[365407820,1749658242494,-490.0,0.00019178,2]
[365407821,1749658242506,-490.0,0.00019178,2]
[365407822,1749658242520,-490.0,0.00019178,2]
[365407823,1749658242529,-481.81681682,0.00019178,2]
[365407824,1749658242539,-490.0,0.00019178,2]
[365407825,1749658242549,-450.0,0.00019178,2]
[365407826,1749658242559,-490.0,0.00019178,2]
[365407827,1749658242569,-490.0,0.00019178,2]
[365407828,1749658242579,-490.0,0.00019178,2]
[365407829,1749658242589,-560.25,0.00019178,2]
[365407830,1749658242599,-490.0,0.00019178,2]
[365407831,1749658242609,-490.0,0.00019178,2]
[365407832,1749658242619,-490.0,0.00019178,2]
[365407833,1749658242629,-539.7,0.00019178,2]
[365407834,1749658242638,-490.0,0.00019178,2]
[365407835,1749658242648,-490.0,0.00019178,2]
[365407836,1749658242657,-490.0,0.00019178,2]
[365407837,1749658242668,-490.0,0.00019178,2]
[365407838,1749658242677,-490.0,0.00019178,2]
[365407839,1749658242687,-490.0,0.00019178,2]
[365407840,1749658242697,-480.0,0.00019178,2]
[365407841,1749658242707,-490.0,0.00019178,2]
[365407842,1749658242716,-490.0,0.00019178,2]
[365407843,1749658242727,-490.0,0.00019178,2]
[365407844,1749658242737,-460.0,0.00019178,2]
[365407845,1749658242747,-225.27814641,0.00019178,2]
[365407846,1749658242761,-490.0,0.00019178,2]
[365407847,1749658242770,-490.0,0.00019178,2]
[365407848,1749658242780,-490.0,0.00019178,2]
[365407849,1749658242789,-490.0,0.00019178,2]
[365407850,1749658242799,-490.0,0.00019178,2]
[365407851,1749658242808,-490.0,0.00019178,2]
[365407853,1749658242818,-490.0,0.00019178,2]
[365407854,1749658242828,-490.0,0.00019178,2]
[365407855,1749658242837,-490.0,0.00019178,2]
[365407856,1749658242848,-490.0,0.00019178,2]
[365407857,1749658242857,-620.04,0.00019178,2]
[365407858,1749658242867,-490.0,0.00019178,2]
[365407859,1749658242877,-490.0,0.00019178,2]
[365407860,1749658242887,-490.0,0.00019178,2]
[365407861,1749658242896,-490.0,0.00019178,2]
[365407862,1749658242906,-490.0,0.00019178,2]
[365407863,1749658242916,-624.79,0.00019178,2]
[365407864,1749658242925,-490.0,0.00019178,2]
[365407865,1749658242935,-490.0,0.00019178,2]
[365407866,1749658242945,-490.0,0.00019178,2]
[365407867,1749658242954,-461.35819104,0.00019178,2]
[365407868,1749658242964,-490.0,0.00019178,2]
[365407869,1749658242973,-490.0,0.00019178,2]
[365407870,1749658242983,-285.645598,0.00019178,2]
[365407871,1749658242993,-490.0,0.00019178,2]
[365407872,1749658243003,-490.0,0.00019178,2]
[365407873,1749658243017,-490.0,0.00019178,2]
[365407874,1749658243027,-490.0,0.00019178,2]
[365407875,1749658243037,-490.0,0.00019178,2]
[365407876,1749658243046,-490.0,0.00019178,2]
[365407877,1749658243056,-490.0,0.00019178,2]
[365407878,1749658243066,-490.0,0.00019178,2]
[365407879,1749658243076,-490.0,0.00019178,2]
[365407880,1749658243085,-490.0,0.00019178,2]
[365407881,1749658243095,-645.8,0.00019178,2]
[365407882,1749658243105,-1262.812813,0.00019178,2]
[365407883,1749658243115,-490.0,0.00019178,2]
[365407884,1749658243124,-300.0,0.00019178,2]
[365407885,1749658243134,-300.0,0.00019178,2]
[365407886,1749658243144,-186.863641,0.00019178,2]
[365407887,1749658243154,-170.92351443,0.00019178,2]
[365407888,1749658243164,-490.0,0.00019178,2]